Cogmind - Beta 13 @@@ ROGUE MODE // 2024.04.11 @ 01:05:00 // Winter2019/RPGLIKE Player: Nebula avali Result: Destroyed by G-67 Veteran with Field Laser Performance ------------- Evolutions (5) 2500 Regions Visited (7) 1400 Robots Destroyed (22) 110 Value Destroyed (590) 590 Prototype IDs (2) 40 Alien Tech Used (0) 0 Bonus (180) 180 TOTAL SCORE: 4820 Bonus ------- Follower Combat Kills 180 Cogmind --------- Core Integrity 0/1100 Matter 261/300 Energy 290/290 System Corruption 17% Temperature Cool (0) Movement Flying (34) Location -5/Factory Parts ------- > --- POWER (1) -------- Improved Deuterium Engine > --- PROPULSION (3) --- Nuclear Pulse Thruster Nuclear Pulse Thruster Nuclear Pulse Thruster > --- UTILITY (4) ------ Armored Scrap Engine Enhanced Optical Array System Restoration Module > --- WEAPON (2) ------- Kinetic Battle Construct/C Makeshift Axe > --- INVENTORY (2) ---- Enhanced Optical Array Faulty Heavy Proton Missile Launcher Peak State ------------ > --- POWER ------------ Improved Deuterium Engine > --- PROPULSION ------- Nuclear Pulse Thruster Nuclear Pulse Thruster Nuclear Pulse Thruster > --- UTILITY ---------- Armored Scrap Engine Enhanced Optical Array System Restoration Module > --- WEAPON ----------- Kinetic Battle Construct/C Makeshift Axe > --- INVENTORY -------- Enhanced Optical Array Heavy Proton Missile Launcher [Rating: 55] Favorites ----------- Power Ion Engine Engine Ion Engine Power Core Light Nuclear Core Propulsion Flight Unit Wheel Compact Wheel Flight Unit Flight Unit Utility Signal Interpreter Device Structural Scanner Processor Signal Interpreter Protection Hardened Light Armor Plating Weapon Improved Light Cannon Energy Gun Medium Laser Ballistic Gun Battle Rifle Ballistic Cannon Improved Light Cannon Slashing Weapon Makeshift Axe Build | -11 -10 -10 -10 -7 -5 -5 -5 ------- Run | Yrd Mat Min Sub Rec Fac Was Fac Slots Evolved 6 | . 3 . 1 . 1 1 . Power . | . . . . . . . . Propulsion 2 | . 1 . 1 . . . . Utility 3 | . 1 . . . 1 1 . Weapon 1 | . 1 . . . . . . Parts Attached 26 | 1 4 4 6 1 4 1 5 Power 2 | . . . 1 . 1 . . Engine 1 | . . . . . 1 . . Core 1 | . . . 1 . . . . Reactor . | . . . . . . . . Propulsion 10 | 1 . 2 3 . 1 . 3 Treads . | . . . . . . . . Leg . | . . . . . . . . Wheel 1 | 1 . . . . . . . Hover . | . . . . . . . . Flight 9 | . . 2 3 . 1 . 3 Utility 9 | . 2 2 . 1 1 1 2 Device 5 | . . 1 . 1 . 1 2 Storage . | . . . . . . . . Processor 2 | . . 1 . . 1 . . Hackware . | . . . . . . . . Protection 2 | . 2 . . . . . . Artifact . | . . . . . . . . Weapon 5 | . 2 . 2 . 1 . . Energy Gun . | . . . . . . . . Energy Cannon . | . . . . . . . . Ballistic Gun 1 | . . . 1 . . . . Ballistic Cannon 3 | . 2 . 1 . . . . Launcher . | . . . . . . . . Special Weapon . | . . . . . . . . Impact Weapon . | . . . . . . . . Slashing Weapon 1 | . . . . . 1 . . Piercing Weapon . | . . . . . . . . Special Melee Weapon . | . . . . . . . . Unidentified Prototypes . | . . . . . . . . Parts Lost . | . . . . . . . . Power . | . . . . . . . . Propulsion . | . . . . . . . . Utility . | . . . . . . . . Weapon . | . . . . . . . . Highest Loss Streak . | . . . . . . . . To Critical Strikes . | . . . . . . . . Average Slot Usage (%) 93 | . 68 98 100 87 84 88 89 Engine 10 | . 14 14 9 . 10 10 10 Core 1 | . . . 3 12 . . . Flight 29 | . . 26 36 37 32 31 29 Device 12 | . . 12 12 12 11 14 20 Processor 10 | . . 12 12 . 10 10 10 Protection 1 | . 18 2 . . . . . Energy Cannon 1 | . . . . . . 10 . Ballistic Gun 3 | . . . 11 12 4 . . Ballistic Cannon 17 | . 14 28 13 12 8 . 6 Slashing Weapon 2 | . . . . . 6 10 10 Naked Turns . | . . . . . . . . Heaviest Build 23 | 7 23 23 14 11 17 18 18 Greatest Support 28 | 16 21 21 22 22 26 22 28 Greatest Overweight (x) 2 | 2 1 2 1 . 1 . 1 Average Overweight (x) . | . . . . . . . . Largest Inventory Capacity 2 | . 2 2 2 2 2 2 2 Average Capacity 1 | . 2 2 2 2 2 2 2 Most Carried 2 | . 1 2 2 2 2 2 2 Average Carried 1 | . . 1 1 2 1 1 1 Final Capacity 2 | . 2 2 2 2 2 2 2 Final Carried 2 | . . 2 2 2 2 1 2 Scrap Engine Consumption 83 | . . . . 16 20 31 16 Constructs Created 2 | . . . . . 2 . . Constructs Modified 5 | . . . . . . 3 2 Class Distribution -------------------- 79% | Mutant 13% | Scavenger-Mutant 7% | Derelict-Mutant Dominant Class ---------------- Mutant | -10/Materials Mutant | -10/Mines Derelict-Mutant | -10/Subcaves Scavenger-Mutant | -7/Recycling Mutant | -5/Factory Mutant | -5/Waste Mutant | -5/Factory Resources | -11 -10 -10 -10 -7 -5 -5 -5 ----------- Run | Yrd Mat Min Sub Rec Fac Was Fac Matter Collected 943 | 210 . 256 256 10 139 35 37 Remotely . | . . . . . . . . Salvage Created 531 | . . 26 117 . 217 . 171 Parts 38 | . . 7 15 . 11 . 5 Haulers Intercepted 1 | . . . . . . . 1 Recyclers Shooed . | . . . . . . . . Parts Field Recycled . | . . . . . . . . Retrieved Matter . | . . . . . . . . Parts Self-Destructed 15 | . . . 15 . . . . Prevented . | . . . . . . . . Kills | -11 -10 -10 -10 -7 -5 -5 -5 ------- Run | Yrd Mat Min Sub Rec Fac Was Fac Combat Hostiles Destroyed 19 | . . 9 6 . 2 . 2 Guns 6 | . . . 4 . 1 . 1 Cannons 13 | . . 9 2 . 1 . 1 Classes Destroyed 11 | . . 2 3 . 4 . 2 Worker 1 | . . . . . 1 . . Hauler 1 | . . . . . . . 1 Recycler 1 | . . . . . 1 . . Turret 2 | . . . 2 . . . . Watcher 1 | . . . . . 1 . . Swarmer 9 | . . 6 3 . . . . Grunt 4 | . . . 2 . 1 . 1 Hunter 1 | . . . . . 1 . . Behemoth 1 | . . . . . . . 1 Subdweller 1 | . . . 1 . . . . Assembled 3 | . . 3 . . . . . Best Kill Streak 5 | . . 3 5 . 2 . 2 Combat Bots Only 3 | . . 3 3 . 1 . 1 Max Kills in Single Turn 1 | . . 1 1 . 1 . 1 Gunslinging . | . . . . . . . . Exploded . | . . . . . . . . Melee . | . . . . . . . . Uniques/NPCs Destroyed . | . . . . . . . . Combat | -11 -10 -10 -10 -7 -5 -5 -5 -------- Run | Yrd Mat Min Sub Rec Fac Was Fac Hostile Shots Fired 230 | . . 53 94 7 40 . 36 Missed 99 | . . 21 48 2 14 . 14 Damage Taken 1972 | . . 558 379 172 467 83 313 Core 1597 | . . 441 309 146 381 64 256 Absorbed by Shields . | . . . . . . . . Redirected to Core 1162 | . . 295 223 93 288 64 199 Regen/Repaired (Parts) 90 | . . . . . 34 29 27 Core Remaining (%) 67 | 100 . . . 35 . . . Volleys Fired 89 | . 2 22 26 . 32 . 7 Largest 2 | . 1 2 2 . 2 . 1 Hottest 78 | . 50 78 64 . 64 . 56 Shots Fired 143 | . 2 44 48 . 42 . 7 Gun 35 | . 2 . 22 . 10 . 1 Cannon 108 | . . 44 26 . 32 . 6 Launcher . | . . . . . . . . Special . | . . . . . . . . Kinetic 140 | . . 44 48 . 42 . 6 Thermal 3 | . 2 . . . . . 1 Explosive . | . . . . . . . . Electromagnetic . | . . . . . . . . Robot Hit Streak 14 | . 1 4 7 . 14 . 5 Robot Miss Streak 5 | . 1 5 5 . 3 . 1 Penetration Max . | . . . . . . . . Secondary Targets . | . . . . . . . . Shots Hit Robots 93 | . 1 21 26 . 34 . 11 Core Hits 38 | . 1 9 11 . 12 . 5 Critical Kills . | . . . . . . . . Critical Parts Destroyed . | . . . . . . . . Critical Strikes 2 | . . . 1 . 1 . . Blast 2 | . . . 1 . 1 . . Melee Attacks 13 | . . . . . 7 1 5 Impact . | . . . . . . . . Slashing 13 | . . . . . 7 1 5 Piercing . | . . . . . . . . Sneak Attacks 3 | . . . . . 2 . 1 Combat Hostiles . | . . . . . . . . Follow-up Attacks . | . . . . . . . . Damage Inflicted 2092 | . 12 459 447 . 761 . 413 Guns 365 | . 12 . 230 . 94 . 29 Cannons 1169 | . . 456 217 . 375 . 121 Explosions . | . . . . . . . . Melee 555 | . . . . . 292 . 263 Ramming 3 | . . 3 . . . . . Kinetic 1493 | . . 456 447 . 469 . 121 Thermal 41 | . 12 . . . . . 29 Explosive . | . . . . . . . . Electromagnetic . | . . . . . . . . Impact . | . . . . . . . . Slashing 555 | . . . . . 292 . 263 Piercing . | . . . . . . . . Highest Corruption 23 | . . . . . . 23 22 Average Corruption 17 | . . . . . . 15 19 Corruption Purged 8 | . . . . . . 3 5 Corruption Blocked . | . . . . . . . . Effects 21 | . . . . . . 11 10 Message Errors 5 | . . . . . . 3 2 Matter Fused 3 | . . . . . . 1 2 Heat Flow Errors 3 | . . . . . . 1 2 Energy Discharges 4 | . . . . . . 2 2 Data Loss (minor) 3 | . . . . . . 2 1 Data Loss (major) 1 | . . . . . . 1 . Misdirections 2 | . . . . . . 1 1 Overload Shots . | . . . . . . . . Overflow Damage 125 | . . 22 12 . 91 . . Projectiles 34 | . . 22 12 . . . . Explosions . | . . . . . . . . Melee 91 | . . . . . 91 . . Knockbacks 16 | . . 1 2 . 8 . 5 Impact . | . . . . . . . . Kinetic 15 | . . 1 2 . 8 . 4 Secondary 1 | . . . . . . . 1 Self-Inflicted Damage 1 | . . 1 . . . . . Shots . | . . . . . . . . Rammed 1 | . . 1 . . . . . Targets Rammed 1 | . . 1 . . . . . Kicked . | . . . . . . . . Crushed . | . . . . . . . . Highest Temperature 258 | . . 180 1 . 50 258 241 Average Temperature 53 | . . 59 1 . 19 140 80 Received Heat Transfer 400 | . . 100 159 . 75 . 66 Siege Activations . | . . . . . . . . Robots Corrupted . | . . . . . . . . Combat Hostiles . | . . . . . . . . Parts Fried . | . . . . . . . . Impact Corruptions . | . . . . . . . . Robots Melted . | . . . . . . . . Combat Hostiles . | . . . . . . . . Parts Melted . | . . . . . . . . Heat Transferred 37 | . 37 . . . . . . Parts Sabotaged . | . . . . . . . . Parts Stolen . | . . . . . . . . Parts Stripped . | . . . . . . . . Power Chain Reactions . | . . . . . . . . Alert | -11 -10 -10 -10 -7 -5 -5 -5 ------- Run | Yrd Mat Min Sub Rec Fac Was Fac Peak Influence 396 | . . 144 . 396 349 181 163 Initial 396 | . . . . 396 165 122 83 Average 129 | . . 35 . 396 273 127 112 Maximum Alert Level 1 | . . . . 1 1 . . Low Security (%) 78 | 100 100 100 . . 34 100 100 Level 1 21 | . . . . 100 65 . . Level 2 . | . . . . . . . . Level 3 . | . . . . . . . . Level 4 . | . . . . . . . . Level 5 . | . . . . . . . . High Security . | . . . . . . . . Max Security . | . . . . . . . . Squads Dispatched 5 | . 1 . . . 1 . 3 Investigation . | . . . . . . . . Extermination . | . . . . . . . . Reinforcement 4 | . 1 . . . 1 . 2 Assault . | . . . . . . . . Garrison 1 | . . . . . . . 1 Intercept . | . . . . . . . . Searches Triggered . | . . . . . . . . Construction Impeded 1 | . . . . . . . 1 Haulers Reinforced 1 | . . . . . . . 1 Active Scanning Responses . | . . . . . . . . Cargo Convoy Interrupts . | . . . . . . . . Stealth | -11 -10 -10 -10 -7 -5 -5 -5 --------- Run | Yrd Mat Min Sub Rec Fac Was Fac Distress Signals 1 | . . . . . . . 1 Communications Jammed . | . . . . . . . . Distress Signals . | . . . . . . . . Times Spotted 103 | . 1 28 37 4 8 6 19 Peak Tracking Total 22 | . 1 22 6 3 4 2 15 Tactical Retreats 8 | . . 4 3 . 1 . . Traps | -11 -10 -10 -10 -7 -5 -5 -5 ------- Run | Yrd Mat Min Sub Rec Fac Was Fac Traps Triggered 1 | . . . . . 1 . . Indirectly . | . . . . . . . . Trap Hack Attempts . | . . . . . . . . Triggered . | . . . . . . . . Disarmed . | . . . . . . . . Reprogrammed . | . . . . . . . . Reused . | . . . . . . . . Traps Extracted . | . . . . . . . . Installed 1 | . . . . . 1 . . Triggered . | . . . . . . . . Most Traps Carried 1 | . . . 1 1 1 . . Machines | -11 -10 -10 -10 -7 -5 -5 -5 ---------- Run | Yrd Mat Min Sub Rec Fac Was Fac Machines Disabled 2 | . . . 1 . . . 1 Max in Single Turn 1 | . . . 1 . . . . Machines Repaired . | . . . . . . . . Machines Dismantled . | . . . . . . . . Machines Sabotaged . | . . . . . . . . Overloaded Fab Kills . | . . . . . . . . Hacking | -11 -10 -10 -10 -7 -5 -5 -5 --------- Run | Yrd Mat Min Sub Rec Fac Was Fac Machines Accessed 11 | . . . . 8 3 . . Terminals 7 | . . . . 5 2 . . Fabricators . | . . . . . . . . Repair Stations 1 | . . . . . 1 . . Recycling Units 3 | . . . . 3 . . . Scanalyzers . | . . . . . . . . Garrison Access . | . . . . . . . . Total Hacks 13 | . . . . 9 4 . . Successful 5 | . . . . 3 2 . . Failed 8 | . . . . 6 2 . . Catastrophic 6 | . . . . 5 1 . . Database Lockouts . | . . . . . . . . Manual 7 | . . . . 5 2 . . Terminals 7 | . . . . 5 2 . . Fabricators . | . . . . . . . . Repair Stations 2 | . . . . . 2 . . Recycling Units 4 | . . . . 4 . . . Scanalyzers . | . . . . . . . . Garrison Access . | . . . . . . . . Terminal Hacks . | . . . . . . . . Fabricator Hacks . | . . . . . . . . Repair Station Hacks 2 | . . . . . 2 . . Scan Component 1 | . . . . . 1 . . Repair 1 | . . . . . 1 . . Recycling Unit Hacks 3 | . . . . 3 . . . Process 1 | . . . . 1 . . . Retrieve Matter 1 | . . . . 1 . . . Retrieve Components 1 | . . . . 1 . . . Scanalyzer . | . . . . . . . . Garrison Access Hacks . | . . . . . . . . Unauthorized Hacks . | . . . . . . . . Terminals . | . . . . . . . . Fabricators . | . . . . . . . . Repair Stations . | . . . . . . . . Recycling Units . | . . . . . . . . Scanalyzers . | . . . . . . . . Garrison Access . | . . . . . . . . Data Cores Recovered . | . . . . . . . . Used . | . . . . . . . . Hacking Detections 8 | . . . . 6 2 . . Full Trace Events . | . . . . . . . . Feedback Events . | . . . . . . . . Feedback Blocked . | . . . . . . . . Robot Schematics Acquired . | . . . . . . . . Robots Built . | . . . . . . . . Authchips . | . . . . . . . . Time . | . . . . . . . . Total Robot Build Rating . | . . . . . . . . Part Schematics Acquired . | . . . . . . . . Parts Built . | . . . . . . . . Authchips . | . . . . . . . . Time . | . . . . . . . . Total Part Build Rating . | . . . . . . . . Parts Repaired 1 | . . . . . 1 . . Time 26 | . . . . . 26 . . Parts Recycled . | . . . . . . . . Recycled Matter . | . . . . . . . . Retrieved Matter . | . . . . . . . . Retrieved Components . | . . . . . . . . Parts Scanalyzed . | . . . . . . . . Part Schematics Acquired . | . . . . . . . . Parts Damaged . | . . . . . . . . Bothacking | -11 -10 -10 -10 -7 -5 -5 -5 ------------ Run | Yrd Mat Min Sub Rec Fac Was Fac Used RIF Installer . | . . . . . . . . Robots Hacked . | . . . . . . . . Non-combat . | . . . . . . . . Combat . | . . . . . . . . Robot Hacks Applied . | . . . . . . . . Relay Couplers Released . | . . . . . . . . Fabnet Peak Effective % . | . . . . . . . . Robots Rewired . | . . . . . . . . Allies Hacked . | . . . . . . . . Hacks Repelled . | . . . . . . . . Allies | -11 -10 -10 -10 -7 -5 -5 -5 -------- Run | Yrd Mat Min Sub Rec Fac Was Fac Total Allies 18 | . . . . . . 18 . Largest Group 18 | . . . . . . 18 6 Highest-Rated Group 638 | . . . . . . 638 222 Highest-Rated Ally 50 | . . . . . . 50 50 Total Orders . | . . . . . . . . Ally Attacks 142 | . . . . . . 121 21 Total Damage 6631 | . . . . . . 5973 658 Kills 13 | . . . . . . 12 1 Allies Corrupted 1 | . . . . . . . 1 Allies Melted . | . . . . . . . . Intel | -11 -10 -10 -10 -7 -5 -5 -5 ------- Run | Yrd Mat Min Sub Rec Fac Was Fac Robot Analysis Total . | . . . . . . . . Derelict Logs Recovered 4 | . . 2 2 . . . . Drone Launches . | . . . . . . . . Drone Recoveries . | . . . . . . . . Exploration | -11 -10 -10 -10 -7 -5 -5 -5 ------------- Run | Yrd Mat Min Sub Rec Fac Was Fac Turns Passed 2798 | 5 57 1251 318 275 399 276 217 Spaces Moved 3062 | 3 43 684 524 663 453 367 325 Core 46 | 1 . . . . 44 . 1 Treads . | . . . . . . . . Legs . | . . . . . . . . Wheels 59 | 2 43 13 . . 1 . . Hover . | . . . . . . . . Flight 2957 | . . 671 524 663 408 367 324 Fastest Speed 34 | 100 100 37 34 34 34 34 34 Average Speed 51 | 116 108 100 36 34 40 34 34 Slowest Speed 200 | 150 115 200 117 34 110 34 120 Overloaded Moves . | . . . . . . . . Propulsion Burnouts . | . . . . . . . . Robots Hopped 8 | . . . . 8 . . . Cave-ins Triggered . | . . . . . . . . Exploration Rate (%) 44 | 2 8 99 33 94 11 95 11 Regions Visited 7 Branch Regions 3 Pre-discovered Areas 2 | . . 1 1 . . . . Known Exits Taken 2 | . . 1 1 . . . . Unknown Exits Taken 3 | 1 1 . . 1 . . . Scrap Searched 8 | . . 2 6 . . . . Spaces Dug 1 | . . . . . . 1 . Terrain Destroyed 5 | . . 4 . . . 1 . Melee 1 | . . . . . . 1 . Projectile 4 | . . 4 . . . . . AOE . | . . . . . . . . Terrain Rammed . | . . . . . . . . Walls Destroyed . | . . . . . . . . Machines Disabled . | . . . . . . . . Actions | -11 -10 -10 -10 -7 -5 -5 -5 --------- Run | Yrd Mat Min Sub Rec Fac Was Fac Total 4125 | 4 50 1202 608 704 623 516 418 Wait 886 | . . 482 44 36 115 143 66 Move 3041 | 2 42 683 523 647 453 366 325 Hop 7 | . . . . 7 . . . Pick Up 9 | . . 2 2 . 2 . 3 Fast Attach 19 | 1 4 4 2 1 2 . 5 Attach 3 | . . . 1 . 1 1 . Detach 6 | . 1 2 1 1 1 . . Swap 4 | . . . 3 . 1 . . Drop 22 | 1 1 3 5 1 4 . 7 Fire 89 | . 2 22 26 . 32 . 7 Melee 13 | . . . . . 7 1 5 Ram 1 | . . 1 . . . . . Kick . | . . . . . . . . Crush . | . . . . . . . . Escape Stasis . | . . . . . . . . Rewire . | . . . . . . . . Trap 1 | . . . . . 1 . . Miscellaneous 24 | . . 3 1 11 4 5 . Route ------- -11/Scrapyard -10/Materials -10/Mines (discovered 3 exits: *Mat x2 / *Sub) -10/Subcaves -7/Recycling -5/Factory -5/Waste -5/Factory History --------- Turn | Location | Event 2 | -11/Scrapyard | Discovered new exit (range 1) 6 | -11/Scrapyard | Entered Materials 6 | -10/Materials | Upgraded with Propulsion slot (x1) 6 | -10/Materials | Upgraded with Utility slot (x1) 6 | -10/Materials | Upgraded with Weapon slot (x1) 6 | -10/Materials | Discovered new exit (range 16) 63 | -10/Materials | Entered Mines 64 | -10/Mines | Met a Derelict bent on vengeance 69 | -10/Mines | Learned Materials terminal intel 244 | -10/Mines | Assembled infested the area 247 | -10/Mines | Learned location of Zion (-6) 264 | -10/Mines | Discovered new exit (range 14) 301 | -10/Mines | Build established: Mutant 302 | -10/Mines | Core integrity fell below 50% 369 | -10/Mines | Identified exit to Materials 707 | -10/Mines | Discovered new exit (range 5) 881 | -10/Mines | Identified exit to Subcaves 935 | -10/Mines | Discovered exit to Materials (range 10) 1314 | -10/Mines | Entered Subcaves 1316 | -10/Subcaves | Reached level 2 1326 | -10/Subcaves | Learned location of Storage (-7) 1329 | -10/Subcaves | Learned location of 1 exit from Materials 1330 | -10/Subcaves | Upgraded with Propulsion slot (x1) 1334 | -10/Subcaves | Shifting Twisted Machinery released Battle Rifle 1337 | -10/Subcaves | Shifting Twisted Machinery released Battle Cannon 1407 | -10/Subcaves | Discovered new exit (range 16) 1455 | -10/Subcaves | A swath of the cavern ceiling suddenly collapsed 1498 | -10/Subcaves | Core integrity fell below 20% 1632 | -10/Subcaves | Identified exit to Recycling 1632 | -10/Subcaves | Entered Recycling 1633 | -7/Recycling | Found Scrap Engine 1634 | -7/Recycling | Reached level 3 1774 | -7/Recycling | Discovered new exit (range 18) 1844 | -7/Recycling | Build established: Scavenger-Mutant 1907 | -7/Recycling | Entered Factory 1908 | -5/Factory | Core integrity fell below 50% 1909 | -5/Factory | Reached level 4 1909 | -5/Factory | Upgraded with Utility slot (x1) 1956 | -5/Factory | Repaired Flight Unit 2159 | -5/Factory | Core integrity fell below 20% 2202 | -5/Factory | Build established: Mutant 2306 | -5/Factory | Sucked down chute 2306 | -5/Factory | Entered Waste 2321 | -5/Waste | EMP discharged 2338 | -5/Waste | Met Warlord forces unprepared to attack 2388 | -5/Waste | Spotted C-40 Crusher 2388 | -5/Waste | Spotted C-40 Crusher 2390 | -5/Waste | Spotted C-40 Crusher 2406 | -5/Waste | Reached level 5 2406 | -5/Waste | Allies destroyed C-40 Crusher 2421 | -5/Waste | EMP discharged 2421 | -5/Waste | System corruption reached 10% 2422 | -5/Waste | Allies destroyed C-40 Crusher 2436 | -5/Waste | Spotted C-40 Crusher 2438 | -5/Waste | Spotted C-40 Crusher 2461 | -5/Waste | Allies destroyed C-40 Crusher 2465 | -5/Waste | Upgraded with Utility slot (x1) 2471 | -5/Waste | Allies destroyed C-40 Crusher 2499 | -5/Waste | Lost 12 allies 2502 | -5/Waste | Discovered new exit (range 13) 2502 | -5/Waste | Spotted C-40 Crusher 2509 | -5/Waste | Allies destroyed C-40 Crusher 2521 | -5/Waste | EMP discharged 2582 | -5/Waste | Entered Factory 2582 | -5/Factory | Accompanied by 6 allies 2617 | -5/Factory | Spotted B-75 Beast 2658 | -5/Factory | Destroyed B-75 Beast 2684 | -5/Factory | Lost 4 allies 2769 | -5/Factory | Garrison activated, responded to threat 2799 | -5/Factory | Destroyed by G-67 Veteran with Field Laser Last Messages --------------- 02784_ W-25 Informer sends out distress signal. 02785_ Slug penetrates Neutrino Reactor. 02786_ Penetrated by Slug. 02786_ U-05 Engineer destroyed. 02786_ Slug penetrates Wall. 02787_ Slug penetrates P4-S18(m). 02787_ P4-S18(m) destroyed. 02787_ K-01 Serf cleans the Neutrino Reactor. 02788_ System Restoration Module purges 1% system corruption (17%). 02789_ Dropped Flight Unit. 02790_ IJ44ZSOC 2QEJLG%G/DU4ZP DN12J7 VKP Map ----- +----------------------------------------------------+ | ??????????????????????????????????# ? #??? | | ??????????????????????????????????? #??? | | ??????????????????????????????????? #??? | | ??????????????????????????????????? #??? | | ???????????????????????????????????? #??? | | ???????????????????????????????????? #### | | ??????????????????????????????????"" """ """ # | | ??????????????????????????????????"" """ """ # | | ?????????????????????????????????""" """ """ # | | ????????????????????????????????? # | | ???????????????????????""??????" """ """ """ # % | | ???????????????????????"" ???""" """ """ """ # | | ?????????????????????? "" ?""" """ """ """ # | | ???????????????????????"" + | | ???????????????????????? """ """ """ """ # | | ????????????????????????? """ """ """ """ # | | ??????????????????????????# """ """ """!"""! # | | ??????????????????????????# ![[% !# | | ??????????????????????????# " " """ """!"""! #### | | ??????????????????????????# "G" """ """ """ #??? | | ??????????????????????????# " """ """ """ #??? | | ??????????????????????????# = #??? | | ??????????????????????????# !% %! #??? | | ???????????????????############### * ########??? | | ???????????????????# # ! # #?????????? | | ???????????????????# "" /@ "" # #?????????? | | ???????????????????# "T #!! F" # #?????????? | | ???????????????????+ "??#! ! " # #?????????? | | ???????????????????#????#! != ""g/ + ""?????? | | ????????????????????????# == h # # ""?????? | | ????????????????????????#! g # #?????????? | | ????????????????????????# # #?????????? | | ????????????????????????# # #?????????? | | ????????????????????????##########^ #?????????? | | ?????????????????????????????????# #?????????? | | ?????????????????????????????????# #?????????? | | ?????????????????????????????????# #?????????? | | ?????????????????????????????????# #?????????? | | ?????????????????????????????????# #?????????? | | ????????????????????????????????? ?????????? | | ????????????????????????????????? ????????? | | ????????????????????????????????? ????????? | | ????????????????????????????????? ???????? | | ???????????????????????????????? ???????? | | ????????????????????????????????###+#######??????? | | ?????????????????????????????????????????????????? | | ?????????????????????????????????????????????????? | | ?????????????????????????????????????????????????? | | ?????????????????????????????????????????????????? | | ?????????????????????????????????????????????????? | +----------------------------------------------------+ Best States ------------- Heat Dissipation 37 Energy Generation 21 Energy Capacity 290 Matter Stores 300 Matter Capacity 300 Sight Range 24 Robot Scan Range 4 Terrain Scan Density 10 Armor Coverage 300 Evasion (%) 63 Offensive Hacking 10 Item Schematics ----------------- None Robot Schematics ------------------ None Fabricated ------------ Nothing Alien Tech Used ----------------- None Achievements -------------- None Challenges ------------ None RPGLIKE | -11 -10 -10 -10 -7 -5 -5 -5 --------- Run | Yrd Mat Min Sub Rec Fac Was Fac Levels Raised 4 | . . . 1 1 1 1 . XP Earned 9510 | 3000 . 1200 1750 1000 1835 290 435 XP Spent 8995 | . 2985 . 1515 1480 1495 1520 . Upgrades 33 | . 13 . 4 8 4 4 . Propulsion Slot 2 | . 1 . 1 . . . . Utility Slot 3 | . 1 . . . 1 1 . Weapon Slot 1 | . 1 . . . . . . Core Integrity 10 | . 2 . 1 4 1 2 . Heat Dissipation 2 | . 1 . 1 . . . . Energy Generation 1 | . 1 . . . . . . Mass Support 2 | . 1 . 1 . . . . Inventory Capacity 2 | . 2 . . . . . . Sight Range 2 | . 1 . . 1 . . . Sensor Range 2 | . 2 . . . . . . Melee Accuracy 3 | . . . . 3 . . . Hack Attack % 2 | . . . . . 2 . . KI Damage % 1 | . . . . . . 1 . Protomatter Created 116 | . . 31 56 . 29 . . Integrity Restored 486 | . . 54 15 210 87 120 . Core 486 | . . 54 15 210 87 120 . Protomatter Decayed 78 | . . . 60 18 . . . Game ------ Seed OmegaDerelictArachnoskeleton Manual? 0 Play Time 00:39:28 Cumulative 30.2 hours Start 2024.04.11 @ 00:20:24 End 2024.04.11 @ 01:05:00 Sessions 1 Manual Loads 0 Difficulty Rogue Special Mode Winter2019/RPGLIKE Game No. 40 Rogue 39 Adventurer 1 Explorer 0 Win Type - Total 1 Types 1/0/0/0/0/0/0/0/0 Lore% 19 Gallery% 42 Achievement% 34 Wizard Run 0 Options --------- Layout 0 ASCII 0 Keyboard 0 Movement Numpad Keybinds 0 Fullscreen 1 Font 18/SmallcapsGlow Map View 76x50 Zoom Use 0% Tactical HUD 1 Map Filters NONE Filters NONE Steam 1 RUN: 0b5a7289-79f4-4f25-8fb4-8f478a65a2cb